[Event "10th LCC FIDE Open 2018"]
[Site "London"]
[Date "2018.12.16"]
[Round "9"]
[White "Lane, Gary W"]
[Black "Lim, Zhuo Ren"]
[Result "1-0"]
[ECO "C07"]
[WhiteElo "2353"]
[BlackElo "2184"]
[Annotator "NA"]
[PlyCount "44"]
[EventDate "2018.12.09"]
[EventType "swiss"]
[EventCountry "ENG"]
[SourceTitle "playchess.com"]
[Source "ChessBase"]
[SourceQuality "1"]
[TimeControl "40/5400+30:1800+30"]

1. e4 {[%emt 0:00:00]} e6 {[%emt 0:16:47]} 2. d4 {[%emt 0:00:08]} d5 {[%emt 0:00:11]} 3. Nd2 {[%emt 0:00:05]} c5 {[%emt 0:00:14]} 4. exd5 {[%emt 0:00:18]} Qxd5 {[%emt 0:00:20]} 5. Ngf3 {[%emt 0:00:08]} cxd4 {[%emt 0:00:15]} 6. Bc4 {[%emt 0:00:05]} Qd7 {[%emt 0:00:13]} 7. O-O {[%emt 0:02:52]} Nc6 {[%emt 0:00:12]} 8. Nb3 {[%emt 0:00:06]} Nf6 {[%emt 0:00:10]} 9. Qe2 {[%emt 0:00:05]} a6 {[%emt 0:00:15]} 10. a4 {[%emt 0:03:13]} Qc7 {[%emt 0:02:14]} 11. Nbxd4 {[%emt 0:03:00]} Nxd4 {[%emt 0:00:07]} 12. Nxd4 {[%emt 0:00:08]} Bd6 {[%emt 0:00:16]} 13. h3 {[%emt 0:02:06]} O-O {[%emt 0:00:18]} 14. Bg5 {[%emt 0:02:41]} Bd7 {[%emt 0:02:41]} 15. c3 {[%emt 0:05:48]} Rac8 {[%emt 0:01:31]} 16. Bb3 {[%emt 0:05:01]} Bf4 {[%emt 0:02:04]} 17. Bh4 {[%emt 0:06:11]} Kh8 {[%emt 0:06:01]} 18. Rad1 {[%emt 0:04:03]} Bc6 {[%emt 0:15:56]} 19. Bc2 {[%emt 0:13:21]} Rg8 {[%emt 0:15:51]} 20. Nxc6 {[%emt 0:25:14]} Qxc6 {[%emt 0:00:06]} 21. Bxf6 {[%emt 0:03:03]} gxf6 {[%emt 0:00:05]} 22. Qe4 {[%emt 0:00:05]} Rxg2+ {[%emt 0:00:34]} 1-0

[Event "10th LCC FIDE Open 2018"]
[Site "London"]
[Date "2018.12.16"]
[Round "9"]
[White "Gullaksen, Eirik"]
[Black "Smith, Andrew Philip"]
[Result "1-0"]
[ECO "C41"]
[WhiteElo "2349"]
[BlackElo "2157"]
[Annotator "NA"]
[PlyCount "110"]
[EventDate "2018.12.09"]
[EventType "swiss"]
[EventCountry "ENG"]
[SourceTitle "playchess.com"]
[Source "ChessBase"]
[SourceQuality "1"]
[TimeControl "40/5400+30:1800+30"]

1. e4 {[%emt 0:00:00]} e5 {[%emt 0:15:35]} 2. Nf3 {[%emt 0:00:00]} d6 {[%emt 0:01:08]} 3. d4 {[%emt 0:00:57]} Nd7 {[%emt 0:01:29]} 4. Bc4 {[%emt 0:01:28]} Qf6 {[%emt 0:05:39]} 5. Nc3 {[%emt 0:04:52]} c6 {[%emt 0:00:09]} 6. h4 {[%emt 0:11:26]} h6 {[%emt 0:01:58]} 7. Be3 {[%emt 0:01:23]} Be7 {[%emt 0:03:25]} 8. Qd2 {[%emt 0:13:18]} Bd8 {[%emt 0:01:38]} 9. O-O-O {[%emt 0:00:30]} Qe7 {[%emt 0:00:24]} 10. h5 {[%emt 0:04:24]} Ba5 {[%emt 0:24:36]} 11. Nh4 {[%emt 0:07:53]} Ndf6 {[%emt 0:00:40]} 12. f3 {[%emt 0:02:14]} Nxh5 {[%emt 0:01:46]} 13. g4 {[%emt 0:00:32]} Nf4 {[%emt 0:02:20]} 14. Bxf4 {[%emt 0:03:38]} exf4 {[%emt 0:00:13]} 15. Nf5 {[%emt 0:00:43]} Bxf5 {[%emt 0:00:32]} 16. gxf5 {[%emt 0:00:31]} O-O-O {[%emt 0:01:59]} 17. Rhg1 {[%emt 0:06:57]} Qf6 {[%emt 0:07:36]} 18. Qxf4 {[%emt 0:01:59]} Bxc3 {[%emt 0:01:37]} 19. bxc3 {[%emt 0:05:05]} g5 {[%emt 0:00:21]} 20. Qg3 {[%emt 0:01:51]} Ne7 {[%emt 0:00:15]} 21. Bd3 {[%emt 0:00:27]} c5 {[%emt 0:13:58]} 22. e5 {[%emt 0:02:42]} dxe5 {[%emt 0:00:07]} 23. dxe5 {[%emt 0:00:20]} Qb6 {[%emt 0:00:42]} 24. Bc4 {[%emt 0:06:25]} Qa5 {[%emt 0:01:00]} 25. Bxf7 {[%emt 0:06:31]} Qxc3 {[%emt 0:00:42]} 26. Kb1 {[%emt 0:00:28]} Qb4+ {[%emt 0:02:18]} 27. Bb3 {[%emt 0:00:12]} Nd5 {[%emt 0:02:07]} 28. Rxd5 {[%emt 0:02:44]} Rxd5 {[%emt 0:00:05]} 29. a3 {[%emt 0:04:17]} Qb6 {[%emt 0:00:46]} 30. Ka2 {[%emt 0:00:50]} Rd2 {[%emt 0:01:38]} 31. Rb1 {[%emt 0:01:44]} c4 {[%emt 0:00:18]} 32. Ba4 {[%emt 0:00:34]} Qa5 {[%emt 0:03:48]} 33. Rb4 {[%emt 0:00:40]} Qd5 {[%emt 0:00:12]} 34. Qg4 {[%emt 0:02:22]} Rd4 {[%emt 0:00:09]} 35. Qg3 {[%emt 0:01:14]} Rd1 {[%emt 0:00:47]} 36. f6 {[%emt 0:02:38]} h5 {[%emt 0:03:13]} 37. Qxg5 {[%emt 0:00:53]} Qd4 {[%emt 0:00:44]} 38. Rb2 {[%emt 0:00:54]} c3 {[%emt 0:00:49]} 39. Rb4 {[%emt 0:00:20]} Qd5+ {[%emt 0:02:02]} 40. Bb3 {[%emt 0:00:18]} Qd2 {[%emt 0:00:23]} 41. Qf4 {[%emt 0:11:46]} Qe1 {[%emt 0:06:00]} 42. Be6+ {[%emt 0:00:17]} Kb8 {[%emt 0:00:24]} 43. f7 {[%emt 0:04:27]} Rf8 {[%emt 0:06:04]} 44. Rxb7+ {[%emt 0:02:16]} Kxb7 {[%emt 0:02:45]} 45. Qb4+ {[%emt 0:00:08]} Kc6 {[%emt 0:00:26]} 46. Qc4+ {[%emt 0:01:52]} Kb6 {[%emt 0:00:14]} 47. Qb4+ {[%emt 0:00:05]} Kc6 {[%emt 0:00:07]} 48. Qxf8 {[%emt 0:04:48]} Ra1+ {[%emt 0:03:04]} 49. Kb3 {[%emt 0:00:06]} Qb1+ {[%emt 0:03:48]} 50. Kxc3 {[%emt 0:00:11]} Qe1+ {[%emt 0:00:15]} 51. Kb2 {[%emt 0:05:10]} Qxe5+ {[%emt 0:11:54]} 52. c3 {[%emt 0:00:18]} Rd1 {[%emt 0:00:16]} 53. Qe8+ {[%emt 0:01:25]} Kb6 {[%emt 0:00:06]} 54. Bb3 {[%emt 0:00:16]} Rd2+ {[%emt 0:01:46]} 55. Bc2 {[%emt 0:00:15]} Qf5 {[%emt 0:01:13]} 1-0

[Event "10th LCC FIDE Open 2018"]
[Site "London"]
[Date "2018.12.16"]
[Round "9"]
[White "Sowray, Peter J"]
[Black "Beckett, Chris J"]
[Result "1-0"]
[ECO "A65"]
[WhiteElo "2342"]
[BlackElo "2165"]
[Annotator "NA"]
[PlyCount "111"]
[EventDate "2018.12.09"]
[EventType "swiss"]
[EventCountry "ENG"]
[SourceTitle "playchess.com"]
[Source "ChessBase"]
[SourceQuality "1"]
[TimeControl "40/5400+30:1800+30"]

1. d4 {[%emt 0:00:00]} Nf6 {[%emt 0:00:00]} 2. c4 {[%emt 0:00:00]} c5 {[%emt 0:00:03]} 3. d5 {[%emt 0:00:00]} e6 {[%emt 0:00:06]} 4. Nc3 {[%emt 0:00:00]} exd5 {[%emt 0:00:04]} 5. cxd5 {[%emt 0:00:00]} d6 {[%emt 0:00:03]} 6. e4 {[%emt 0:00:05]} g6 {[%emt 0:00:08]} 7. Nge2 {[%emt 0:00:05]} Bg7 {[%emt 0:00:51]} 8. Ng3 {[%emt 0:00:06]} a6 {[%emt 0:00:22]} 9. a4 {[%emt 0:00:09]} h5 {[%emt 0:00:17]} 10. Be2 {[%emt 0:00:54]} Nbd7 {[%emt 0:00:22]} 11. Bg5 {[%emt 0:05:17]} Qa5 {[%emt 0:01:09]} 12. O-O {[%emt 0:03:39]} h4 {[%emt 0:09:45]} 13. Nh1 {[%emt 0:00:17]} h3 {[%emt 0:00:47]} 14. g3 {[%emt 0:10:06]} O-O {[%emt 0:09:34]} 15. f3 {[%emt 0:01:34]} Nh7 {[%emt 0:17:16]} 16. Be3 {[%emt 0:05:12]} Qb4 {[%emt 0:06:48]} 17. Rb1 {[%emt 0:09:12]} Nb6 {[%emt 0:10:02]} 18. Qc2 {[%emt 0:08:37]} f5 {[%emt 0:03:28]} 19. a5 {[%emt 0:09:22]} Nc4 {[%emt 0:03:12]} 20. Bxc4 {[%emt 0:04:22]} Qxc4 {[%emt 0:00:03]} 21. Nf2 {[%emt 0:00:54]} Bd7 {[%emt 0:12:12]} 22. Bf4 {[%emt 0:03:03]} Rfe8 {[%emt 0:03:04]} 23. Qd2 {[%emt 0:05:12]} Bd4 {[%emt 0:08:41]} 24. Bxd6 {[%emt 0:07:23]} fxe4 {[%emt 0:01:50]} 25. fxe4 {[%emt 0:02:56]} Nf6 {[%emt 0:00:16]} 26. Qh6 {[%emt 0:01:13]} Ng4 {[%emt 0:01:40]} 27. Qxg6+ {[%emt 0:00:56]} Kh8 {[%emt 0:00:16]} 28. Rbd1 {[%emt 0:05:27]} Nxf2 {[%emt 0:04:29]} 29. Rxf2 {[%emt 0:01:09]} Bxf2+ {[%emt 0:00:33]} 30. Kxf2 {[%emt 0:00:03]} Ba4 {[%emt 0:01:20]} 31. Rd2 {[%emt 0:04:27]} Rf8+ {[%emt 0:02:24]} 32. Bf4 {[%emt 0:00:06]} Bd7 {[%emt 0:01:14]} 33. Ke3 {[%emt 0:02:48]} Rae8 {[%emt 0:00:32]} 34. Qh5+ {[%emt 0:02:26]} Kg8 {[%emt 0:00:27]} 35. Be5 {[%emt 0:02:21]} Rxe5 {[%emt 0:00:08]} 36. Qxe5 {[%emt 0:00:02]} Qf1 {[%emt 0:00:45]} 37. Qg5+ {[%emt 0:00:16]} Kh7 {[%emt 0:00:39]} 38. Qh5+ {[%emt 0:00:18]} Kg8 {[%emt 0:00:35]} 39. Qd1 {[%emt 0:02:34]} Qf6 {[%emt 0:00:48]} 40. Kd3 {[%emt 0:01:14]} Qd8 {[%emt 0:03:15]} 41. Qh5 {[%emt 0:09:08]} Qxa5 {[%emt 0:01:46]} 42. Qg6+ {[%emt 0:00:19]} Kh8 {[%emt 0:00:08]} 43. Qh6+ {[%emt 0:00:03]} Kg8 {[%emt 0:00:08]} 44. Qg5+ {[%emt 0:00:13]} Kh8 {[%emt 0:01:43]} 45. Qe7 {[%emt 0:00:29]} Bb5+ {[%emt 0:04:59]} 46. Ke3 {[%emt 0:00:50]} Rf1 {[%emt 0:02:42]} 47. Qh4+ {[%emt 0:01:45]} Kg7 {[%emt 0:00:40]} 48. Qg4+ {[%emt 0:01:10]} Kf7 {[%emt 0:02:31]} 49. Qxh3 {[%emt 0:02:38]} Qa1 {[%emt 0:07:00]} 50. Qh5+ {[%emt 0:01:54]} Kg8 {[%emt 0:01:11]} 51. Nxb5 {[%emt 0:03:24]} axb5 {[%emt 0:03:34]} 52. d6 {[%emt 0:01:32]} Rf7 {[%emt 0:02:16]} 53. Qd1 {[%emt 0:03:49]} Qa6 {[%emt 0:00:32]} 54. Qg4+ {[%emt 0:00:51]} Kh7 {[%emt 0:01:15]} 55. Rd5 {[%emt 0:01:57]} Rg7 {[%emt 0:01:26]} 56. Rh5+ {[%emt 0:01:09]} 1-0

[Event "10th LCC FIDE Open 2018"]
[Site "London"]
[Date "2018.12.16"]
[Round "9"]
[White "Bradbury, Neil H"]
[Black "Czopor, Maciej"]
[Result "1-0"]
[ECO "E21"]
[WhiteElo "2336"]
[BlackElo "2164"]
[Annotator "NA"]
[PlyCount "131"]
[EventDate "2018.12.09"]
[EventType "swiss"]
[EventCountry "ENG"]
[SourceTitle "playchess.com"]
[Source "ChessBase"]
[SourceQuality "1"]
[TimeControl "40/5400+30:1800+30"]

1. d4 {[%emt 0:00:06]} Nf6 {[%emt 0:00:00]} 2. c4 {[%emt 0:00:16]} b6 {[%emt 0:00:00]} 3. Nc3 {[%emt 0:01:40]} Bb7 {[%emt 0:00:07]} 4. Nf3 {[%emt 0:01:54]} e6 {[%emt 0:01:14]} 5. g3 {[%emt 0:00:29]} Bb4 {[%emt 0:01:31]} 6. Bg2 {[%emt 0:00:33]} Bxc3+ {[%emt 0:05:30]} 7. bxc3 {[%emt 0:00:07]} O-O {[%emt 0:00:14]} 8. O-O {[%emt 0:00:25]} d6 {[%emt 0:04:08]} 9. Re1 {[%emt 0:14:24]} Nbd7 {[%emt 0:03:32]} 10. a4 {[%emt 0:02:13]} a5 {[%emt 0:01:28]} 11. Ba3 {[%emt 0:01:40]} Re8 {[%emt 0:05:10]} 12. Qb3 {[%emt 0:03:15]} Qc8 {[%emt 0:01:56]} 13. Bh3 {[%emt 0:00:30]} Ne4 {[%emt 0:05:45]} 14. Rad1 {[%emt 0:02:28]} Rb8 {[%emt 0:09:56]} 15. Qc2 {[%emt 0:00:26]} Qd8 {[%emt 0:05:49]} 16. Bg2 {[%emt 0:08:13]} Qf6 {[%emt 0:03:53]} 17. Rf1 {[%emt 0:00:54]} Qe7 {[%emt 0:05:26]} 18. Ne1 {[%emt 0:04:23]} f5 {[%emt 0:08:48]} 19. Nd3 {[%emt 0:16:06]} Qf7 {[%emt 0:05:41]} 20. f3 {[%emt 0:02:29]} Nef6 {[%emt 0:00:07]} 21. Bh3 {[%emt 0:07:09]} g6 {[%emt 0:03:41]} 22. e4 {[%emt 0:10:28]} fxe4 {[%emt 0:02:15]} 23. fxe4 {[%emt 0:00:01]} Bxe4 {[%emt 0:00:52]} 24. Rde1 {[%emt 0:00:41]} Qg7 {[%emt 0:03:15]} 25. Qe2 {[%emt 0:00:56]} Bf5 {[%emt 0:05:49]} 26. g4 {[%emt 0:00:26]} Bxd3 {[%emt 0:00:08]} 27. Qxd3 {[%emt 0:00:02]} g5 {[%emt 0:00:43]} 28. Bc1 {[%emt 0:02:14]} Re7 {[%emt 0:01:21]} 29. Bg2 {[%emt 0:01:35]} h6 {[%emt 0:00:37]} 30. h3 {[%emt 0:00:05]} Nf8 {[%emt 0:01:05]} 31. c5 {[%emt 0:02:13]} Ng6 {[%emt 0:06:26]} 32. cxd6 {[%emt 0:01:05]} cxd6 {[%emt 0:00:06]} 33. Qc4 {[%emt 0:06:20]} d5 {[%emt 0:03:28]} 34. Qc6 {[%emt 0:00:18]} Nf8 {[%emt 0:03:14]} 35. Ba3 {[%emt 0:01:19]} Rc7 {[%emt 0:00:18]} 36. Qd6 {[%emt 0:01:04]} Rbc8 {[%emt 0:00:35]} 37. Rxe6 {[%emt 0:02:02]} Rd7 {[%emt 0:02:14]} 38. Qxb6 {[%emt 0:00:42]} Nxe6 {[%emt 0:01:33]} 39. Qxe6+ {[%emt 0:00:34]} Qf7 {[%emt 0:00:16]} 40. Rxf6 {[%emt 0:03:08]} Qxe6 {[%emt 0:00:11]} 41. Rxe6 {[%emt 0:30:01]} Rxc3 {[%emt 0:30:14]} 42. Bc5 {[%emt 0:01:09]} Rc1+ {[%emt 0:00:00]} 43. Kh2 {[%emt 0:00:00]} Rc2 {[%emt 0:00:00]} 44. Re3 {[%emt 0:00:00]} Ra2 {[%emt 0:00:00]} 45. Ra3 {[%emt 0:00:00]} Rb2 {[%emt 0:00:00]} 46. Kg3 {[%emt 0:00:00]} Kg7 {[%emt 0:00:00]} 47. Re3 {[%emt 0:00:00]} Rc2 {[%emt 0:00:00]} 48. Bf3 {[%emt 0:00:00]} Ra2 {[%emt 0:00:00]} 49. Re5 {[%emt 0:00:00]} Rxa4 {[%emt 0:00:00]} 50. Bxd5 {[%emt 0:00:00]} Ra1 {[%emt 0:00:00]} 51. Bc6 {[%emt 0:00:00]} Rf7 {[%emt 0:00:00]} 52. d5 {[%emt 0:00:00]} Rc1 {[%emt 0:00:00]} 53. Bd4 {[%emt 0:00:00]} Rd1 {[%emt 0:00:00]} 54. Bc3 {[%emt 0:00:00]} Rg1+ {[%emt 0:00:00]} 55. Kh2 {[%emt 0:00:00]} Rc1 {[%emt 0:00:00]} 56. Re3+ {[%emt 0:00:39]} Kh7 {[%emt 0:00:00]} 57. d6 {[%emt 0:00:21]} Rd1 {[%emt 0:00:00]} 58. d7 {[%emt 0:02:47]} Rfxd7 {[%emt 0:00:00]} 59. Bxd7 {[%emt 0:00:08]} Rxd7 {[%emt 0:00:00]} 60. Bxa5 {[%emt 0:00:08]} Rd6 {[%emt 0:00:00]} 61. Bc3 {[%emt 0:00:25]} Rc6 {[%emt 0:00:00]} 62. Kg3 {[%emt 0:00:22]} Ra6 {[%emt 0:00:00]} 63. Kf3 {[%emt 0:00:28]} Rc6 {[%emt 0:00:00]} 64. Ke4 {[%emt 0:02:41]} Re6+ {[%emt 0:00:00]} 65. Be5 {[%emt 0:00:12]} Ra6 {[%emt 0:00:00]} 66. Rd3 {[%emt 0:00:52]} 1-0

[Event "10th LCC FIDE Open 2018"]
[Site "London"]
[Date "2018.12.16"]
[Round "9"]
[White "Derakhshani, Borna"]
[Black "Georgescu, Lena"]
[Result "1/2-1/2"]
[ECO "D02"]
[WhiteElo "2325"]
[BlackElo "2162"]
[Annotator "NA"]
[PlyCount "79"]
[EventDate "2018.12.09"]
[EventType "swiss"]
[EventCountry "ENG"]
[SourceTitle "playchess.com"]
[Source "ChessBase"]
[SourceQuality "1"]
[TimeControl "40/5400+30:1800+30"]

1. d4 {[%emt 0:06:04]} Nf6 {[%emt 0:00:00]} 2. Bf4 {[%emt 0:00:07]} e6 {[%emt 0:00:00]} 3. e3 {[%emt 0:00:43]} d5 {[%emt 0:00:00]} 4. Nd2 {[%emt 0:00:37]} Bd6 {[%emt 0:00:40]} 5. Bg3 {[%emt 0:00:14]} O-O {[%emt 0:00:51]} 6. Bd3 {[%emt 0:00:17]} c5 {[%emt 0:00:39]} 7. c3 {[%emt 0:00:10]} Qc7 {[%emt 0:00:42]} 8. Ngf3 {[%emt 0:02:00]} Nbd7 {[%emt 0:01:03]} 9. O-O {[%emt 0:03:44]} e5 {[%emt 0:03:07]} 10. e4 {[%emt 0:13:58]} exd4 {[%emt 0:08:01]} 11. cxd4 {[%emt 0:03:24]} Bxg3 {[%emt 0:01:53]} 12. hxg3 {[%emt 0:00:25]} dxe4 {[%emt 0:09:50]} 13. Nxe4 {[%emt 0:01:41]} cxd4 {[%emt 0:02:47]} 14. Nxd4 {[%emt 0:04:26]} Nxe4 {[%emt 0:01:43]} 15. Bxe4 {[%emt 0:01:20]} Nf6 {[%emt 0:00:23]} 16. Bf3 {[%emt 0:01:01]} Qb6 {[%emt 0:02:19]} 17. Qd2 {[%emt 0:09:40]} Rd8 {[%emt 0:05:42]} 18. Rfd1 {[%emt 0:01:54]} Bg4 {[%emt 0:06:00]} 19. Bxg4 {[%emt 0:08:08]} Nxg4 {[%emt 0:00:08]} 20. Qf4 {[%emt 0:00:45]} Nf6 {[%emt 0:02:14]} 21. Rd2 {[%emt 0:02:58]} g6 {[%emt 0:08:55]} 22. Rad1 {[%emt 0:02:02]} Rd5 {[%emt 0:11:25]} 23. Nf3 {[%emt 0:06:43]} Rxd2 {[%emt 0:02:23]} 24. Qxd2 {[%emt 0:05:59]} Rc8 {[%emt 0:04:25]} 25. Re1 {[%emt 0:04:16]} Re8 {[%emt 0:05:06]} 26. Rxe8+ {[%emt 0:02:25]} Nxe8 {[%emt 0:00:07]} 27. g4 {[%emt 0:00:39]} h6 {[%emt 0:04:13]} 28. b3 {[%emt 0:05:19]} Nf6 {[%emt 0:02:41]} 29. Ne5 {[%emt 0:01:26]} Kg7 {[%emt 0:02:06]} 30. Nc4 {[%emt 0:03:14]} Qe6 {[%emt 0:01:46]} 31. Ne3 {[%emt 0:00:47]} Qe4 {[%emt 0:02:11]} 32. f3 {[%emt 0:00:45]} Qe5 {[%emt 0:00:32]} 33. Nc4 {[%emt 0:01:54]} Qc5+ {[%emt 0:04:36]} 34. Kf1 {[%emt 0:00:53]} b5 {[%emt 0:01:50]} 35. Ne3 {[%emt 0:00:02]} h5 {[%emt 0:01:08]} 36. b4 {[%emt 0:04:08]} Qe5 {[%emt 0:00:58]} 37. gxh5 {[%emt 0:00:02]} Nxh5 {[%emt 0:00:57]} 38. Ng4 {[%emt 0:00:18]} Qa1+ {[%emt 0:01:03]} 39. Kf2 {[%emt 0:00:01]} Nf6 {[%emt 0:01:05]} 40. Nxf6 {[%emt 0:04:54]} 1/2-1/2

[Event "10th LCC FIDE Open 2018"]
[Site "London"]
[Date "2018.12.16"]
[Round "9"]
[White "Fischer, Daniel"]
[Black "Woong, Zhi Wei William"]
[Result "1/2-1/2"]
[ECO "B42"]
[WhiteElo "2324"]
[BlackElo "2146"]
[Annotator "NA"]
[PlyCount "83"]
[EventDate "2018.12.09"]
[EventType "swiss"]
[EventCountry "ENG"]
[SourceTitle "playchess.com"]
[Source "ChessBase"]
[SourceQuality "1"]
[TimeControl "40/5400+30:1800+30"]

1. e4 {[%emt 0:00:00]} c5 {[%emt 0:00:00]} 2. Nf3 {[%emt 0:00:00]} e6 {[%emt 0:00:00]} 3. d4 {[%emt 0:00:00]} cxd4 {[%emt 0:00:03]} 4. Nxd4 {[%emt 0:00:00]} a6 {[%emt 0:00:09]} 5. Bd3 {[%emt 0:00:55]} Nf6 {[%emt 0:00:20]} 6. O-O {[%emt 0:00:53]} e5 {[%emt 0:00:38]} 7. Bg5 {[%emt 0:01:09]} d6 {[%emt 0:00:16]} 8. Nf5 {[%emt 0:01:09]} Be6 {[%emt 0:00:46]} 9. Bxf6 {[%emt 0:02:51]} Qxf6 {[%emt 0:00:40]} 10. Ne3 {[%emt 0:00:15]} Nd7 {[%emt 0:02:06]} 11. Nc3 {[%emt 0:06:56]} Rc8 {[%emt 0:07:37]} 12. Ncd5 {[%emt 0:03:54]} Qg5 {[%emt 0:13:21]} 13. Qe2 {[%emt 0:11:54]} Be7 {[%emt 0:04:57]} 14. Rad1 {[%emt 0:07:02]} O-O {[%emt 0:02:12]} 15. Bc4 {[%emt 0:05:32]} Rfd8 {[%emt 0:05:52]} 16. Qf3 {[%emt 0:14:52]} Bf8 {[%emt 0:03:16]} 17. Bb3 {[%emt 0:02:05]} Nc5 {[%emt 0:08:35]} 18. c3 {[%emt 0:04:15]} g6 {[%emt 0:14:05]} 19. g3 {[%emt 0:06:38]} Bh3 {[%emt 0:12:04]} 20. Nb6 {[%emt 0:14:51]} Nxb3 {[%emt 0:02:06]} 21. Nxc8 {[%emt 0:00:39]} Bxf1 {[%emt 0:01:31]} 22. Kxf1 {[%emt 0:01:06]} Nd4 {[%emt 0:05:07]} 23. cxd4 {[%emt 0:02:17]} exd4 {[%emt 0:03:37]} 24. Rxd4 {[%emt 0:05:34]} Rxc8 {[%emt 0:00:32]} 25. Rd5 {[%emt 0:00:21]} Qe7 {[%emt 0:01:04]} 26. Qf4 {[%emt 0:05:20]} Bg7 {[%emt 0:02:36]} 27. b3 {[%emt 0:02:14]} Re8 {[%emt 0:01:28]} 28. Nc4 {[%emt 0:00:27]} Qxe4 {[%emt 0:03:25]} 29. Qxe4 {[%emt 0:00:08]} Rxe4 {[%emt 0:00:04]} 30. Nxd6 {[%emt 0:00:56]} Re7 {[%emt 0:02:13]} 31. Nc4 {[%emt 0:00:33]} Bf6 {[%emt 0:01:35]} 32. Rd6 {[%emt 0:00:38]} Kg7 {[%emt 0:00:34]} 33. Ne3 {[%emt 0:00:30]} Re6 {[%emt 0:02:06]} 34. Rd7 {[%emt 0:00:29]} Re7 {[%emt 0:00:11]} 35. Rd3 {[%emt 0:00:31]} h5 {[%emt 0:00:55]} 36. Kg2 {[%emt 0:00:32]} Rc7 {[%emt 0:00:48]} 37. Rd6 {[%emt 0:00:24]} Bg5 {[%emt 0:00:55]} 38. Nc4 {[%emt 0:00:31]} Be7 {[%emt 0:00:20]} 39. Rd5 {[%emt 0:00:31]} b5 {[%emt 0:00:31]} 40. Ne3 {[%emt 0:00:35]} Bc5 {[%emt 0:00:49]} 41. Kf3 {[%emt 0:07:04]} Kf6 {[%emt 0:03:24]} 42. Rd2 {[%emt 0:01:54]} 1/2-1/2

[Event "10th LCC FIDE Open 2018"]
[Site "London"]
[Date "2018.12.16"]
[Round "9"]
[White "Kueppers, Timo"]
[Black "Wilks, Simon"]
[Result "1-0"]
[ECO "C03"]
[WhiteElo "2320"]
[BlackElo "2019"]
[Annotator "NA"]
[PlyCount "75"]
[EventDate "2018.12.09"]
[EventType "swiss"]
[EventCountry "ENG"]
[SourceTitle "playchess.com"]
[Source "ChessBase"]
[SourceQuality "1"]
[TimeControl "40/5400+30:1800+30"]

1. e4 {[%emt 0:00:12]} e6 {[%emt 0:02:01]} 2. d4 {[%emt 0:00:09]} d5 {[%emt 0:00:02]} 3. Nd2 {[%emt 0:00:07]} h6 {[%emt 0:00:41]} 4. Ngf3 {[%emt 0:00:08]} Nf6 {[%emt 0:00:06]} 5. e5 {[%emt 0:00:03]} Nfd7 {[%emt 0:00:02]} 6. c4 {[%emt 0:00:07]} dxc4 {[%emt 0:02:42]} 7. Nxc4 {[%emt 0:00:05]} Nb6 {[%emt 0:00:38]} 8. a3 {[%emt 0:00:55]} Bd7 {[%emt 0:01:14]} 9. Na5 {[%emt 0:03:00]} Qc8 {[%emt 0:02:36]} 10. Bd3 {[%emt 0:02:29]} Nc6 {[%emt 0:00:43]} 11. Nb3 {[%emt 0:02:28]} Ne7 {[%emt 0:04:14]} 12. Nc5 {[%emt 0:01:38]} Bc6 {[%emt 0:00:57]} 13. O-O {[%emt 0:02:16]} Ned5 {[%emt 0:06:52]} 14. b4 {[%emt 0:03:55]} a6 {[%emt 0:01:44]} 15. Bb2 {[%emt 0:08:01]} Bb5 {[%emt 0:03:10]} 16. Rc1 {[%emt 0:07:36]} Nf4 {[%emt 0:21:21]} 17. Bxb5+ {[%emt 0:09:17]} axb5 {[%emt 0:00:07]} 18. g3 {[%emt 0:00:42]} Nfd5 {[%emt 0:00:11]} 19. Nd2 {[%emt 0:01:14]} c6 {[%emt 0:07:26]} 20. Qe2 {[%emt 0:01:16]} Be7 {[%emt 0:03:53]} 21. f4 {[%emt 0:00:51]} g6 {[%emt 0:02:25]} 22. g4 {[%emt 0:12:39]} g5 {[%emt 0:05:59]} 23. f5 {[%emt 0:00:45]} Nf4 {[%emt 0:02:39]} 24. Qe4 {[%emt 0:03:19]} Nbd5 {[%emt 0:03:12]} 25. Ndb3 {[%emt 0:05:04]} Bd8 {[%emt 0:16:07]} 26. Rc2 {[%emt 0:02:23]} h5 {[%emt 0:04:24]} 27. Bc1 {[%emt 0:02:28]} hxg4 {[%emt 0:01:37]} 28. fxe6 {[%emt 0:00:32]} b6 {[%emt 0:05:42]} 29. exf7+ {[%emt 0:03:10]} Kf8 {[%emt 0:00:28]} 30. Nd3 {[%emt 0:01:17]} Nh3+ {[%emt 0:00:26]} 31. Kh1 {[%emt 0:07:13]} g3 {[%emt 0:00:57]} 32. e6 {[%emt 0:03:55]} Qc7 {[%emt 0:00:42]} 33. Ne5 {[%emt 0:00:31]} Ne7 {[%emt 0:00:36]} 34. Nd7+ {[%emt 0:01:35]} Kg7 {[%emt 0:00:20]} 35. f8=Q+ {[%emt 0:00:56]} Rxf8 {[%emt 0:00:07]} 36. Rxf8 {[%emt 0:00:11]} Ng6 {[%emt 0:00:55]} 37. Rf7+ {[%emt 0:00:24]} Kh6 {[%emt 0:00:08]} 38. Ne5 {[%emt 0:01:05]} 1-0

[Event "10th LCC FIDE Open 2018"]
[Site "London"]
[Date "2018.12.16"]
[Round "9"]
[White "Ronka, Erik"]
[Black "Eche, Sylvain"]
[Result "1-0"]
[ECO "D93"]
[WhiteElo "2281"]
[BlackElo "2136"]
[Annotator "NA"]
[PlyCount "55"]
[EventDate "2018.12.09"]
[EventType "swiss"]
[EventCountry "ENG"]
[SourceTitle "playchess.com"]
[Source "ChessBase"]
[SourceQuality "1"]
[TimeControl "40/5400+30:1800+30"]

1. d4 {[%emt 0:10:31]} Nf6 {[%emt 0:00:00]} 2. c4 {[%emt 0:00:06]} g6 {[%emt 0:00:00]} 3. Nc3 {[%emt 0:00:07]} d5 {[%emt 0:00:00]} 4. Bf4 {[%emt 0:00:07]} c6 {[%emt 0:00:39]} 5. e3 {[%emt 0:00:27]} Bg7 {[%emt 0:00:17]} 6. Nf3 {[%emt 0:00:36]} O-O {[%emt 0:02:25]} 7. Bd3 {[%emt 0:02:08]} dxc4 {[%emt 0:11:49]} 8. Bxc4 {[%emt 0:00:04]} Bf5 {[%emt 0:03:07]} 9. O-O {[%emt 0:02:55]} Ne4 {[%emt 0:02:05]} 10. Qb3 {[%emt 0:02:48]} Qb6 {[%emt 0:11:46]} 11. Qa3 {[%emt 0:11:27]} c5 {[%emt 0:05:56]} 12. Nd5 {[%emt 0:01:58]} Qd8 {[%emt 0:05:44]} 13. dxc5 {[%emt 0:09:19]} Nd7 {[%emt 0:09:01]} 14. c6 {[%emt 0:02:34]} bxc6 {[%emt 0:03:08]} 15. Bc7 {[%emt 0:06:08]} cxd5 {[%emt 0:05:22]} 16. Bxd8 {[%emt 0:02:34]} dxc4 {[%emt 0:00:20]} 17. Bxe7 {[%emt 0:00:28]} Rfb8 {[%emt 0:02:03]} 18. Nd4 {[%emt 0:02:51]} Rb7 {[%emt 0:02:03]} 19. f3 {[%emt 0:02:16]} Nef6 {[%emt 0:02:47]} 20. Nxf5 {[%emt 0:01:14]} gxf5 {[%emt 0:00:08]} 21. Rad1 {[%emt 0:02:13]} Ne5 {[%emt 0:03:14]} 22. Rd8+ {[%emt 0:07:38]} Rxd8 {[%emt 0:01:02]} 23. Bxd8 {[%emt 0:00:02]} Nd5 {[%emt 0:02:21]} 24. Qc5 {[%emt 0:03:55]} Rd7 {[%emt 0:05:07]} 25. Qc8 {[%emt 0:00:47]} Bf8 {[%emt 0:00:12]} 26. f4 {[%emt 0:00:50]} Nxe3 {[%emt 0:01:16]} 27. fxe5 {[%emt 0:00:13]} Rd2 {[%emt 0:00:04]} 28. Be7 {[%emt 0:00:41]} 1-0